[Event "Titled Tuesday Blitz March 01 Early 2022"]
[White "Siva Mahadevan"]
[Black "Rodchenkov, Sergey D."]
[WhiteFideId "25043153"]
[BlackFideId "4168712"]
[WhiteElo "2203"]
[BlackElo "2306"]
[Result "1-0"]
[Round "11"]
[TimeControl "180+1"]
[Date "2022.03.01"]
[WhiteClock "0:00:18"]
[BlackClock "0:00:06"]

1. e4 {[%clk 0:02:58]}  c5 {[%clk 0:02:59]} 2. Nf3 {[%clk 0:02:58]}  d6 {[%clk 0:03:00]} 3. d4 {[%clk 0:02:59]}  cxd4 {[%clk 0:03:01]} 4. Nxd4 {[%clk 0:02:59]}  Nf6 {[%clk 0:03:01]} 5. Nc3 {[%clk 0:03:00]}  a6 {[%clk 0:03:01]} 6. Bg5 {[%clk 0:03:01]}  e6 {[%clk 0:03:02]} 7. f4 {[%clk 0:03:01]}  h6 {[%clk 0:03:02]} 8. Bh4 {[%clk 0:03:01]}  Qb6 {[%clk 0:03:02]} 9. Qd2 {[%clk 0:03:00]}  Qxb2 {[%clk 0:02:59]} 10. Rb1 {[%clk 0:03:01]}  Qa3 {[%clk 0:03:00]} 11. e5 {[%clk 0:03:01]}  dxe5 {[%clk 0:02:59]} 12. fxe5 {[%clk 0:03:02]}  Nfd7 {[%clk 0:03:00]} 13. Ne4 {[%clk 0:03:02]}  Qxa2 {[%clk 0:03:00]} 14. Rd1 {[%clk 0:03:02]}  Qd5 {[%clk 0:03:01]} 15. Qe3 {[%clk 0:03:02]}  Qxe5 {[%clk 0:03:01]} 16. c3 {[%clk 0:03:00]}  Be7 {[%clk 0:02:49]} 17. Bg3 {[%clk 0:02:07]}  Qa5 {[%clk 0:02:37]} 18. Nd6+ {[%clk 0:02:07]}  Bxd6 {[%clk 0:02:35]} 19. Bxd6 {[%clk 0:02:07]}  Nf6 {[%clk 0:02:23]} 20. Be2 {[%clk 0:01:44]}  Nc6 {[%clk 0:02:12]} 21. Nxc6 {[%clk 0:01:32]}  bxc6 {[%clk 0:02:12]} 22. Bb4 {[%clk 0:01:24]}  Qg5 {[%clk 0:02:09]} 23. Qb6 {[%clk 0:01:19]}  Bd7 {[%clk 0:01:38]} 24. Bf3 {[%clk 0:01:04]}  Nd5 {[%clk 0:01:26]} 25. Bxd5 {[%clk 0:01:04]}  cxd5 {[%clk 0:01:26]} 26. O-O {[%clk 0:01:03]}  a5 {[%clk 0:01:12]} 27. Ba3 {[%clk 0:01:01]}  Rc8 {[%clk 0:00:51]} 28. Rd3 {[%clk 0:00:33]}  Qe5 {[%clk 0:00:35]} 29. Bd6 {[%clk 0:00:29]}  Qe4 {[%clk 0:00:29]} 30. Rg3 {[%clk 0:00:29]}  g6 {[%clk 0:00:15]} 31. Re3 {[%clk 0:00:29]}  Qc4 {[%clk 0:00:15]} 32. Qxa5 {[%clk 0:00:27]}  f5 {[%clk 0:00:14]} 33. Qa7 {[%clk 0:00:24]}  Qa4 {[%clk 0:00:12]} 34. Rxe6+ {[%clk 0:00:22]}  Kd8 {[%clk 0:00:08]} 35. Be7+ {[%clk 0:00:21]}  Ke8 {[%clk 0:00:07]} 36. Bf6+ {[%clk 0:00:22]}  Kf8 {[%clk 0:00:05]} 37. Qxa4 {[%clk 0:00:18]}  Bxa4 {[%clk 0:00:06]} 1-0


[Site "https://www.chess.com"]

[Event "Titled Tuesday Blitz March 01 Early 2022"]
[White "Sliwicki, Damian"]
[Black "Prado Lobo, Jonas"]
[WhiteFideId "1127128"]
[BlackFideId "32050666"]
[WhiteElo "2084"]
[BlackElo "2199"]
[Result "1-0"]
[Round "11"]
[TimeControl "180+1"]
[Date "2022.03.01"]
[WhiteClock "0:00:55"]
[BlackClock "0:00:39"]

1. e4 {[%clk 0:02:52]}  e6 {[%clk 0:02:59]} 2. d4 {[%clk 0:02:52]}  d5 {[%clk 0:03:00]} 3. Nc3 {[%clk 0:02:52]}  Nf6 {[%clk 0:03:01]} 4. Bg5 {[%clk 0:02:51]}  dxe4 {[%clk 0:03:00]} 5. Bxf6 {[%clk 0:02:38]}  gxf6 {[%clk 0:03:01]} 6. Nxe4 {[%clk 0:02:38]}  f5 {[%clk 0:02:52]} 7. Ng3 {[%clk 0:02:26]}  b6 {[%clk 0:02:27]} 8. Nf3 {[%clk 0:02:13]}  Bb7 {[%clk 0:02:26]} 9. Bb5+ {[%clk 0:02:13]}  c6 {[%clk 0:02:21]} 10. Ba4 {[%clk 0:02:13]}  Nd7 {[%clk 0:02:12]} 11. Qe2 {[%clk 0:02:09]}  Qc7 {[%clk 0:02:02]} 12. Nxf5 {[%clk 0:02:00]}  O-O-O {[%clk 0:01:58]} 13. Ne3 {[%clk 0:01:54]}  Bh6 {[%clk 0:01:48]} 14. c3 {[%clk 0:01:54]}  Rhg8 {[%clk 0:01:48]} 15. Bc2 {[%clk 0:01:43]}  Rg7 {[%clk 0:01:29]} 16. O-O-O {[%clk 0:01:04]}  Rxg2 {[%clk 0:01:23]} 17. Kb1 {[%clk 0:01:01]}  Rg7 {[%clk 0:01:08]} 18. Rhg1 {[%clk 0:01:01]}  Rdg8 {[%clk 0:01:07]} 19. Rg3 {[%clk 0:00:44]}  c5 {[%clk 0:00:59]} 20. Bxh7 {[%clk 0:00:29]}  Rxg3 {[%clk 0:00:54]} 21. hxg3 {[%clk 0:00:30]}  Rh8 {[%clk 0:00:46]} 22. Bd3 {[%clk 0:00:30]}  Bg7 {[%clk 0:00:40]} 23. Ba6 {[%clk 0:00:27]}  Kb8 {[%clk 0:00:22]} 24. Bxb7 {[%clk 0:00:27]}  Qxb7 {[%clk 0:00:23]} 25. d5 {[%clk 0:00:27]}  Re8 {[%clk 0:00:19]} 26. dxe6 {[%clk 0:00:25]}  Rxe6 {[%clk 0:00:19]} 27. Qd3 {[%clk 0:00:25]}  Kc8 {[%clk 0:00:10]} 28. Nc4 {[%clk 0:00:21]}  Bf8 {[%clk 0:00:09]} 29. Nfe5 {[%clk 0:00:19]}  Re7 {[%clk 0:00:04]} 30. Nd6+ {[%clk 0:00:19]}  Kc7 {[%clk 0:00:05]} 31. Nxb7 {[%clk 0:00:20]}  Nxe5 {[%clk 0:00:05]} 32. Qd8+ {[%clk 0:00:18]}  Kxb7 {[%clk 0:00:06]} 33. Qxf8 {[%clk 0:00:19]}  Rc7 {[%clk 0:00:05]} 34. Qd6 {[%clk 0:00:18]}  Nc4 {[%clk 0:00:05]} 35. Qd5+ {[%clk 0:00:19]}  Ka6 {[%clk 0:00:03]} 36. Qxc4+ {[%clk 0:00:20]}  b5 {[%clk 0:00:04]} 37. Qd5 {[%clk 0:00:20]}  Rb7 {[%clk 0:00:03]} 38. Qxb7+ {[%clk 0:00:20]}  Kxb7 {[%clk 0:00:04]} 39. Rd7+ {[%clk 0:00:21]}  Kc6 {[%clk 0:00:04]} 40. Rxf7 {[%clk 0:00:22]}  a5 {[%clk 0:00:05]} 41. Rf4 {[%clk 0:00:22]}  b4 {[%clk 0:00:06]} 42. cxb4 {[%clk 0:00:22]}  Kb5 {[%clk 0:00:07]} 43. b3 {[%clk 0:00:23]}  a4 {[%clk 0:00:07]} 44. Kc2 {[%clk 0:00:24]}  a3 {[%clk 0:00:08]} 45. bxc5 {[%clk 0:00:24]}  Kxc5 {[%clk 0:00:08]} 46. Ra4 {[%clk 0:00:25]}  Kb5 {[%clk 0:00:09]} 47. Rxa3 {[%clk 0:00:26]}  Kb4 {[%clk 0:00:10]} 48. Ra4+ {[%clk 0:00:27]}  Kb5 {[%clk 0:00:10]} 49. Rf4 {[%clk 0:00:27]}  Kc5 {[%clk 0:00:11]} 50. a4 {[%clk 0:00:28]}  Kd5 {[%clk 0:00:12]} 51. Kd3 {[%clk 0:00:29]}  Ke5 {[%clk 0:00:13]} 52. Ke3 {[%clk 0:00:29]}  Kd5 {[%clk 0:00:14]} 53. Kf3 {[%clk 0:00:30]}  Kd6 {[%clk 0:00:15]} 54. Kg2 {[%clk 0:00:31]}  Ke5 {[%clk 0:00:16]} 55. Kh1 {[%clk 0:00:32]}  Kd5 {[%clk 0:00:16]} 56. Kg1 {[%clk 0:00:33]}  Kc6 {[%clk 0:00:17]} 57. Kf1 {[%clk 0:00:34]}  Kc5 {[%clk 0:00:18]} 58. Ke1 {[%clk 0:00:35]}  Kd6 {[%clk 0:00:19]} 59. Kd1 {[%clk 0:00:35]}  Kd5 {[%clk 0:00:20]} 60. Kc1 {[%clk 0:00:36]}  Kc6 {[%clk 0:00:21]} 61. Kb1 {[%clk 0:00:37]}  Kd5 {[%clk 0:00:22]} 62. Ka1 {[%clk 0:00:38]}  Kc6 {[%clk 0:00:23]} 63. Kb2 {[%clk 0:00:39]}  Kd6 {[%clk 0:00:24]} 64. Ka2 {[%clk 0:00:40]}  Kc5 {[%clk 0:00:24]} 65. Ka3 {[%clk 0:00:41]}  Kc6 {[%clk 0:00:25]} 66. Kb2 {[%clk 0:00:42]}  Kd6 {[%clk 0:00:26]} 67. Kc3 {[%clk 0:00:43]}  Kd5 {[%clk 0:00:27]} 68. Kd2 {[%clk 0:00:44]}  Kc5 {[%clk 0:00:28]} 69. Ke3 {[%clk 0:00:44]}  Kc6 {[%clk 0:00:29]} 70. Kf3 {[%clk 0:00:45]}  Kd6 {[%clk 0:00:29]} 71. Kg4 {[%clk 0:00:46]}  Kc5 {[%clk 0:00:30]} 72. Kh4 {[%clk 0:00:47]}  Kc6 {[%clk 0:00:30]} 73. g4 {[%clk 0:00:48]}  Kd6 {[%clk 0:00:31]} 74. Kg3 {[%clk 0:00:49]}  Kd5 {[%clk 0:00:32]} 75. f3 {[%clk 0:00:50]}  Kc5 {[%clk 0:00:33]} 76. Rf5+ {[%clk 0:00:51]}  Kc6 {[%clk 0:00:34]} 77. g5 {[%clk 0:00:51]}  Kd6 {[%clk 0:00:34]} 78. Kg4 {[%clk 0:00:52]}  Kc6 {[%clk 0:00:35]} 79. g6 {[%clk 0:00:52]}  Kc7 {[%clk 0:00:36]} 80. g7 {[%clk 0:00:53]}  Kd7 {[%clk 0:00:37]} 81. g8=Q {[%clk 0:00:53]}  Kd6 {[%clk 0:00:38]} 82. Qg6+ {[%clk 0:00:53]}  Ke7 {[%clk 0:00:38]} 83. Rf7+ {[%clk 0:00:54]}  Ke8 {[%clk 0:00:39]} 84. Qg8# {[%clk 0:00:55]} 1-0


[Site "https://www.chess.com"]

[Event "Titled Tuesday Blitz March 01 Early 2022"]
[White "Timofeev, Artyom"]
[Black "Horobetz, Graham"]
[WhiteFideId "4140419"]
[BlackFideId "2047322"]
[WhiteElo "2583"]
[BlackElo "2646"]
[Result "1/2-1/2"]
[Round "11"]
[TimeControl "180+1"]
[Date "2022.03.01"]
[WhiteClock "0:00:12"]
[BlackClock "0:00:08"]

1. c4 {[%clk 0:03:00]}  c5 {[%clk 0:02:59]} 2. Nf3 {[%clk 0:03:00]}  g6 {[%clk 0:02:59]} 3. d4 {[%clk 0:03:00]}  cxd4 {[%clk 0:03:00]} 4. Nxd4 {[%clk 0:03:00]}  Bg7 {[%clk 0:03:00]} 5. g3 {[%clk 0:02:59]}  Nc6 {[%clk 0:03:01]} 6. Nf3 {[%clk 0:02:51]}  Nf6 {[%clk 0:03:00]} 7. Bg2 {[%clk 0:02:51]}  d5 {[%clk 0:03:00]} 8. cxd5 {[%clk 0:02:45]}  Qxd5 {[%clk 0:03:00]} 9. O-O {[%clk 0:02:33]}  O-O {[%clk 0:02:46]} 10. Nc3 {[%clk 0:02:32]}  Qh5 {[%clk 0:02:44]} 11. Qa4 {[%clk 0:02:30]}  Bh3 {[%clk 0:02:40]} 12. Qh4 {[%clk 0:02:27]}  Qxh4 {[%clk 0:02:36]} 13. Nxh4 {[%clk 0:02:27]}  Bxg2 {[%clk 0:02:36]} 14. Kxg2 {[%clk 0:02:28]}  Rfd8 {[%clk 0:02:33]} 15. Nf3 {[%clk 0:02:27]}  Nd5 {[%clk 0:02:32]} 16. Ne4 {[%clk 0:02:19]}  b6 {[%clk 0:02:32]} 17. a3 {[%clk 0:02:18]}  Na5 {[%clk 0:02:31]} 18. Rb1 {[%clk 0:02:16]}  Nb3 {[%clk 0:02:25]} 19. Ned2 {[%clk 0:02:13]}  Nxc1 {[%clk 0:02:20]} 20. Rfxc1 {[%clk 0:02:13]}  Rac8 {[%clk 0:02:20]} 21. e4 {[%clk 0:02:05]}  Nf6 {[%clk 0:02:17]} 22. Kf1 {[%clk 0:01:52]}  Rxc1+ {[%clk 0:02:12]} 23. Rxc1 {[%clk 0:01:52]}  Bh6 {[%clk 0:02:13]} 24. Rc2 {[%clk 0:01:51]}  Bxd2 {[%clk 0:02:07]} 25. Nxd2 {[%clk 0:01:50]}  Rd7 {[%clk 0:02:04]} 26. Ke2 {[%clk 0:01:49]}  Kg7 {[%clk 0:02:03]} 27. f3 {[%clk 0:01:49]}  Ne8 {[%clk 0:02:02]} 28. Ke3 {[%clk 0:01:42]}  Nd6 {[%clk 0:02:00]} 29. a4 {[%clk 0:01:40]}  Nb7 {[%clk 0:01:57]} 30. Nb3 {[%clk 0:01:35]}  f6 {[%clk 0:01:50]} 31. f4 {[%clk 0:01:26]}  Kf7 {[%clk 0:01:46]} 32. h4 {[%clk 0:01:25]}  h5 {[%clk 0:01:46]} 33. Rd2 {[%clk 0:01:10]}  Nd6 {[%clk 0:01:45]} 34. Rc2 {[%clk 0:01:10]}  f5 {[%clk 0:01:40]} 35. Nd2 {[%clk 0:01:03]}  fxe4 {[%clk 0:01:38]} 36. Nxe4 {[%clk 0:01:03]}  Nf5+ {[%clk 0:01:37]} 37. Kf2 {[%clk 0:01:03]}  Rd4 {[%clk 0:01:28]} 38. Ng5+ {[%clk 0:01:03]}  Ke8 {[%clk 0:01:28]} 39. Rc6 {[%clk 0:00:55]}  Nd6 {[%clk 0:01:19]} 40. b3 {[%clk 0:00:44]}  Rd3 {[%clk 0:01:17]} 41. Rc7 {[%clk 0:00:40]}  a5 {[%clk 0:01:12]} 42. Nf3 {[%clk 0:00:32]}  Kd8 {[%clk 0:00:56]} 43. Ra7 {[%clk 0:00:31]}  Rxb3 {[%clk 0:00:55]} 44. Ne5 {[%clk 0:00:31]}  Ne4+ {[%clk 0:00:52]} 45. Ke1 {[%clk 0:00:28]}  Nxg3 {[%clk 0:00:25]} 46. Nc6+ {[%clk 0:00:23]}  Ke8 {[%clk 0:00:25]} 47. Rxe7+ {[%clk 0:00:22]}  Kf8 {[%clk 0:00:25]} 48. Re6 {[%clk 0:00:22]}  Nf5 {[%clk 0:00:22]} 49. Rxg6 {[%clk 0:00:21]}  Nxh4 {[%clk 0:00:22]} 50. Rh6 {[%clk 0:00:20]}  Ng2+ {[%clk 0:00:21]} 51. Kf2 {[%clk 0:00:18]}  Rb2+ {[%clk 0:00:19]} 52. Kf3 {[%clk 0:00:17]}  Kg7 {[%clk 0:00:18]} 53. Rxh5 {[%clk 0:00:16]}  Ne1+ {[%clk 0:00:17]} 54. Ke4 {[%clk 0:00:16]}  Re2+ {[%clk 0:00:14]} 55. Kf5 {[%clk 0:00:17]}  Nf3 {[%clk 0:00:12]} 56. Ne5 {[%clk 0:00:16]}  Nd4+ {[%clk 0:00:11]} 57. Kg4 {[%clk 0:00:15]}  Rg2+ {[%clk 0:00:11]} 58. Kh3 {[%clk 0:00:16]}  Rf2 {[%clk 0:00:10]} 59. Kg3 {[%clk 0:00:14]}  Rf1 {[%clk 0:00:09]} 60. Rg5+ {[%clk 0:00:14]}  Kf6 {[%clk 0:00:08]} 61. Rg6+ {[%clk 0:00:14]}  Kf5 {[%clk 0:00:07]} 62. Rxb6 {[%clk 0:00:14]}  Ne2+ {[%clk 0:00:07]} 63. Kg2 {[%clk 0:00:14]}  Rxf4 {[%clk 0:00:07]} 64. Nc6 {[%clk 0:00:14]}  Nd4 {[%clk 0:00:06]} 65. Nxd4+ {[%clk 0:00:13]}  Rxd4 {[%clk 0:00:06]} 66. Rb5+ {[%clk 0:00:14]}  Ke6 {[%clk 0:00:07]} 67. Rxa5 {[%clk 0:00:15]}  Kd6 {[%clk 0:00:06]} 68. Kf3 {[%clk 0:00:15]}  Kc6 {[%clk 0:00:06]} 69. Ke3 {[%clk 0:00:15]}  Rd1 {[%clk 0:00:06]} 70. Ra8 {[%clk 0:00:15]}  Kb7 {[%clk 0:00:07]} 71. Rh8 {[%clk 0:00:15]}  Kb6 {[%clk 0:00:07]} 72. Rh5 {[%clk 0:00:13]}  Ra1 {[%clk 0:00:07]} 73. Rb5+ {[%clk 0:00:12]}  Ka6 {[%clk 0:00:07]} 74. Rb4 {[%clk 0:00:13]}  Ka5 {[%clk 0:00:07]} 75. Rd4 {[%clk 0:00:13]}  Ra3+ {[%clk 0:00:07]} 76. Kd2 {[%clk 0:00:13]}  Rxa4 {[%clk 0:00:08]} 77. Rxa4+ {[%clk 0:00:12]}  Kxa4 {[%clk 0:00:08]} 1/2-1/2


[Site "https://www.chess.com"]

[Event "Titled Tuesday Blitz March 01 Early 2022"]
[White "Tsvetkov, Andrey"]
[Black "Jones, Gawain C B"]
[WhiteFideId "34139360"]
[BlackFideId "409561"]
[WhiteElo "2280"]
[BlackElo "2657"]
[Result "0-1"]
[Round "11"]
[TimeControl "180+1"]
[Date "2022.03.01"]
[WhiteClock "0:00:02"]
[BlackClock "0:00:08"]

1. d4 {[%clk 0:03:00]}  Nf6 {[%clk 0:02:59]} 2. c4 {[%clk 0:03:01]}  e6 {[%clk 0:02:59]} 3. Nc3 {[%clk 0:03:01]}  Bb4 {[%clk 0:02:58]} 4. e3 {[%clk 0:03:02]}  O-O {[%clk 0:02:58]} 5. Nf3 {[%clk 0:03:02]}  d5 {[%clk 0:02:55]} 6. Bd2 {[%clk 0:03:02]}  c5 {[%clk 0:02:55]} 7. cxd5 {[%clk 0:02:45]}  cxd4 {[%clk 0:02:52]} 8. Nxd4 {[%clk 0:02:44]}  Nxd5 {[%clk 0:02:52]} 9. Rc1 {[%clk 0:02:20]}  e5 {[%clk 0:02:49]} 10. Nf3 {[%clk 0:02:17]}  Nxc3 {[%clk 0:02:46]} 11. Bxc3 {[%clk 0:02:18]}  Bxc3+ {[%clk 0:02:46]} 12. Rxc3 {[%clk 0:02:15]}  Qa5 {[%clk 0:02:41]} 13. Bc4 {[%clk 0:01:58]}  Nc6 {[%clk 0:02:22]} 14. O-O {[%clk 0:01:51]}  Bg4 {[%clk 0:02:14]} 15. h3 {[%clk 0:01:43]}  Rad8 {[%clk 0:02:10]} 16. Rd3 {[%clk 0:01:17]}  e4 {[%clk 0:02:02]} 17. Rd5 {[%clk 0:01:18]}  exf3 {[%clk 0:01:44]} 18. hxg4 {[%clk 0:00:59]}  Qb4 {[%clk 0:01:32]} 19. Qc2 {[%clk 0:00:42]}  fxg2 {[%clk 0:01:19]} 20. Rfd1 {[%clk 0:00:22]}  Rxd5 {[%clk 0:01:11]} 21. Rxd5 {[%clk 0:00:23]}  Qe1+ {[%clk 0:01:03]} 22. Kxg2 {[%clk 0:00:23]}  Nb4 {[%clk 0:01:03]} 23. Qd2 {[%clk 0:00:21]}  Qxd2 {[%clk 0:00:59]} 24. Rxd2 {[%clk 0:00:22]}  Nc6 {[%clk 0:00:58]} 25. Rd7 {[%clk 0:00:16]}  Ne5 {[%clk 0:00:57]} 26. Rc7 {[%clk 0:00:17]}  Nxc4 {[%clk 0:00:54]} 27. Rxc4 {[%clk 0:00:18]}  Rb8 {[%clk 0:00:45]} 28. Rc7 {[%clk 0:00:18]}  Kf8 {[%clk 0:00:45]} 29. f4 {[%clk 0:00:17]}  a5 {[%clk 0:00:45]} 30. Kf3 {[%clk 0:00:17]}  a4 {[%clk 0:00:43]} 31. e4 {[%clk 0:00:16]}  b5 {[%clk 0:00:44]} 32. e5 {[%clk 0:00:16]}  Rd8 {[%clk 0:00:40]} 33. Rb7 {[%clk 0:00:16]}  Rd5 {[%clk 0:00:38]} 34. Ke4 {[%clk 0:00:16]}  Rc5 {[%clk 0:00:39]} 35. f5 {[%clk 0:00:16]}  Rc4+ {[%clk 0:00:32]} 36. Kd5 {[%clk 0:00:16]}  Rxg4 {[%clk 0:00:31]} 37. Rxb5 {[%clk 0:00:15]}  Rg2 {[%clk 0:00:18]} 38. Kd6 {[%clk 0:00:04]}  Rd2+ {[%clk 0:00:18]} 39. Kc6 {[%clk 0:00:04]}  h5 {[%clk 0:00:14]} 40. Rb8+ {[%clk 0:00:04]}  Ke7 {[%clk 0:00:14]} 41. Rb7+ {[%clk 0:00:05]}  Ke8 {[%clk 0:00:14]} 42. Rb8+ {[%clk 0:00:05]}  Rd8 {[%clk 0:00:13]} 43. Rb4 {[%clk 0:00:05]}  Ra8 {[%clk 0:00:11]} 44. Rh4 {[%clk 0:00:05]}  g6 {[%clk 0:00:11]} 45. Kd5 {[%clk 0:00:04]}  Ra5+ {[%clk 0:00:07]} 46. Ke4 {[%clk 0:00:05]}  Rb5 {[%clk 0:00:07]} 47. b3 {[%clk 0:00:02]}  Rb4+ {[%clk 0:00:08]} 48. Kd5 {[%clk 0:00:02]}  Rxh4 {[%clk 0:00:08]} 49. f6 {[%clk 0:00:03]}  Rh2 {[%clk 0:00:08]} 50. e6 {[%clk 0:00:02]}  Rd2+ {[%clk 0:00:08]} 0-1


[Site "https://www.chess.com"]

[Event "Titled Tuesday Blitz March 01 Early 2022"]
[White "Tymrakiewicz, Rafal"]
[Black "Alavkin, Arseny"]
[WhiteFideId "1108832"]
[BlackFideId "4120612"]
[WhiteElo "2205"]
[BlackElo "2391"]
[Result "1-0"]
[Round "11"]
[TimeControl "180+1"]
[Date "2022.03.01"]
[WhiteClock "0:00:04"]
[BlackClock "0:00:02"]

1. d4 {[%clk 0:03:00]}  Nf6 {[%clk 0:02:46]} 2. Bg5 {[%clk 0:02:59]}  c5 {[%clk 0:02:04]} 3. e3 {[%clk 0:02:55]}  d5 {[%clk 0:02:04]} 4. c3 {[%clk 0:02:53]}  Nc6 {[%clk 0:02:04]} 5. Nd2 {[%clk 0:02:48]}  Bf5 {[%clk 0:02:01]} 6. Qb3 {[%clk 0:02:42]}  Qd7 {[%clk 0:01:25]} 7. Ngf3 {[%clk 0:02:40]}  a6 {[%clk 0:01:25]} 8. a4 {[%clk 0:02:36]}  e6 {[%clk 0:01:14]} 9. Bxf6 {[%clk 0:02:21]}  gxf6 {[%clk 0:01:14]} 10. g3 {[%clk 0:02:22]}  Be7 {[%clk 0:01:10]} 11. Bg2 {[%clk 0:02:22]}  O-O {[%clk 0:01:10]} 12. O-O {[%clk 0:02:21]}  c4 {[%clk 0:01:10]} 13. Qd1 {[%clk 0:02:17]}  b5 {[%clk 0:01:11]} 14. e4 {[%clk 0:01:53]}  Bxe4 {[%clk 0:01:08]} 15. Nxe4 {[%clk 0:01:27]}  dxe4 {[%clk 0:01:08]} 16. Nd2 {[%clk 0:01:23]}  f5 {[%clk 0:01:04]} 17. Re1 {[%clk 0:01:15]}  Kh8 {[%clk 0:00:57]} 18. f3 {[%clk 0:01:08]}  exf3 {[%clk 0:00:40]} 19. Nxf3 {[%clk 0:01:09]}  Rab8 {[%clk 0:00:37]} 20. axb5 {[%clk 0:01:05]}  axb5 {[%clk 0:00:38]} 21. Qe2 {[%clk 0:01:02]}  Bf6 {[%clk 0:00:36]} 22. Ra6 {[%clk 0:00:52]}  Rfc8 {[%clk 0:00:31]} 23. Rea1 {[%clk 0:00:46]}  b4 {[%clk 0:00:28]} 24. d5 {[%clk 0:00:32]}  exd5 {[%clk 0:00:26]} 25. Rc1 {[%clk 0:00:23]}  bxc3 {[%clk 0:00:22]} 26. bxc3 {[%clk 0:00:24]}  Rb3 {[%clk 0:00:22]} 27. Qd2 {[%clk 0:00:14]}  d4 {[%clk 0:00:18]} 28. Qh6 {[%clk 0:00:11]}  Bg7 {[%clk 0:00:18]} 29. Qh5 {[%clk 0:00:12]}  h6 {[%clk 0:00:13]} 30. Ng5 {[%clk 0:00:10]}  Kg8 {[%clk 0:00:11]} 31. Bxc6 {[%clk 0:00:07]}  Rxc6 {[%clk 0:00:10]} 32. Rxc6 {[%clk 0:00:07]}  hxg5 {[%clk 0:00:03]} 33. Rxc4 {[%clk 0:00:07]}  dxc3 {[%clk 0:00:03]} 34. Rd1 {[%clk 0:00:06]}  c2 {[%clk 0:00:02]} 35. Rxd7 {[%clk 0:00:04]}  Rb1+ {[%clk 0:00:03]} 36. Kg2 {[%clk 0:00:03]}  c1=Q {[%clk 0:00:02]} 37. Rxc1 {[%clk 0:00:04]}  Rxc1 {[%clk 0:00:02]} 38. Qxf7+ {[%clk 0:00:04]}  Kh7 {[%clk 0:00:02]} 39. Qxg7# {[%clk 0:00:04]} 1-0


[Site "https://www.chess.com"]

[Event "Titled Tuesday Blitz March 01 Early 2022"]
[White "Viskelis, Darius"]
[Black "Kejzar, Petra"]
[WhiteFideId "12800830"]
[BlackFideId "14610213"]
[WhiteElo "1999"]
[BlackElo "2006"]
[Result "1-0"]
[Round "11"]
[TimeControl "180+1"]
[Date "2022.03.01"]
[WhiteClock "0:00:42"]
[BlackClock "0:00:06"]

1. e4 {[%clk 0:03:00]}  c5 {[%clk 0:02:59]} 2. d4 {[%clk 0:02:54]}  cxd4 {[%clk 0:02:58]} 3. c3 {[%clk 0:02:54]}  Nf6 {[%clk 0:02:58]} 4. e5 {[%clk 0:02:54]}  Nd5 {[%clk 0:02:58]} 5. Nf3 {[%clk 0:02:55]}  d6 {[%clk 0:02:57]} 6. Bc4 {[%clk 0:02:55]}  dxe5 {[%clk 0:02:55]} 7. Nxe5 {[%clk 0:02:54]}  e6 {[%clk 0:02:35]} 8. cxd4 {[%clk 0:02:38]}  Bb4+ {[%clk 0:02:26]} 9. Bd2 {[%clk 0:02:32]}  Bxd2+ {[%clk 0:02:23]} 10. Nxd2 {[%clk 0:02:33]}  O-O {[%clk 0:02:23]} 11. O-O {[%clk 0:02:33]}  Nb6 {[%clk 0:02:19]} 12. Bd3 {[%clk 0:02:24]}  Qxd4 {[%clk 0:02:16]} 13. Ndf3 {[%clk 0:02:24]}  Qf4 {[%clk 0:02:06]} 14. Re1 {[%clk 0:02:16]}  N8d7 {[%clk 0:01:56]} 15. Re4 {[%clk 0:02:16]}  Qh6 {[%clk 0:01:47]} 16. Rh4 {[%clk 0:02:16]}  Nxe5 {[%clk 0:01:42]} 17. Rxh6 {[%clk 0:02:13]}  Nxf3+ {[%clk 0:01:42]} 18. Qxf3 {[%clk 0:02:12]}  gxh6 {[%clk 0:01:43]} 19. Qf6 {[%clk 0:02:05]}  Nd5 {[%clk 0:01:35]} 20. Qxh6 {[%clk 0:02:05]}  f5 {[%clk 0:01:35]} 21. Re1 {[%clk 0:01:57]}  Rf6 {[%clk 0:01:21]} 22. Qg5+ {[%clk 0:01:54]}  Kf7 {[%clk 0:01:21]} 23. h4 {[%clk 0:01:43]}  Bd7 {[%clk 0:01:20]} 24. Qh5+ {[%clk 0:01:40]}  Kg7 {[%clk 0:01:11]} 25. Bc4 {[%clk 0:01:34]}  Bc6 {[%clk 0:01:05]} 26. b4 {[%clk 0:01:30]}  a6 {[%clk 0:01:03]} 27. a4 {[%clk 0:01:29]}  b5 {[%clk 0:00:58]} 28. Bxd5 {[%clk 0:01:17]}  Bxd5 {[%clk 0:00:56]} 29. Rc1 {[%clk 0:01:17]}  Rg6 {[%clk 0:00:39]} 30. Rc7+ {[%clk 0:01:10]}  Kf6 {[%clk 0:00:37]} 31. g3 {[%clk 0:00:57]}  h6 {[%clk 0:00:23]} 32. Qd1 {[%clk 0:00:46]}  bxa4 {[%clk 0:00:21]} 33. Qd4+ {[%clk 0:00:46]}  e5 {[%clk 0:00:14]} 34. Qxd5 {[%clk 0:00:43]}  Rg7 {[%clk 0:00:06]} 35. Qd6# {[%clk 0:00:42]} 1-0


[Site "https://www.chess.com"]